[Event "*** Titled Tuesday Blitz"]
[Site "Chess.com"]
[Date "2021.02.02"]
[Round "11"]
[White "jacky72"]
[Black "Alexsur1981"]
[Result "0-1"]
[WhiteElo "2681"]
[BlackElo "2852"]
[TimeControl "180+1"]
[EndTime "12:08:03 PST"]
[Termination "Alexsur1981 won by checkmate"]

1. d4 {[%clk 0:03:00.9]} 1... d6 {[%clk 0:02:59.3]} 2. c4 {[%clk 0:03:00.8]}
2... e5 {[%clk 0:02:59.1]} 3. Nf3 {[%clk 0:03:01.2]} 3... Nc6 {[%clk 0:02:58.8]}
4. g3 {[%clk 0:02:57.4]} 4... Bg4 {[%clk 0:02:56.6]} 5. d5 {[%clk 0:02:56.7]}
5... Nce7 {[%clk 0:02:56.2]} 6. Bg2 {[%clk 0:02:56.7]} 6... g6 {[%clk 0:02:56]}
7. h3 {[%clk 0:02:56.8]} 7... Bxf3 {[%clk 0:02:55.8]} 8. Bxf3 {[%clk 0:02:54.8]}
8... Bg7 {[%clk 0:02:56.2]} 9. Nc3 {[%clk 0:02:47.9]} 9... f5 {[%clk 0:02:55.9]}
10. Bg2 {[%clk 0:02:43.4]} 10... Nf6 {[%clk 0:02:55.6]} 11. e4 {[%clk
0:02:37.1]} 11... O-O {[%clk 0:02:51.5]} 12. O-O {[%clk 0:02:37.6]} 12... f4
{[%clk 0:02:50.2]} 13. g4 {[%clk 0:02:32.7]} 13... Nd7 {[%clk 0:02:41.1]} 14. f3
{[%clk 0:02:31.2]} 14... Bf6 {[%clk 0:02:40.8]} 15. Bd2 {[%clk 0:02:29.2]} 15...
Bh4 {[%clk 0:02:40.7]} 16. Be1 {[%clk 0:02:27.8]} 16... Bxe1 {[%clk 0:02:38.7]}
17. Qxe1 {[%clk 0:02:28.7]} 17... g5 {[%clk 0:02:38.8]} 18. h4 {[%clk
0:02:27.9]} 18... gxh4 {[%clk 0:02:37.1]} 19. Qxh4 {[%clk 0:02:27.4]} 19... Ng6
{[%clk 0:02:37.7]} 20. Qh6 {[%clk 0:02:18.1]} 20... Qh4 {[%clk 0:02:27.1]} 21.
Qxh4 {[%clk 0:02:17.9]} 21... Nxh4 {[%clk 0:02:28]} 22. Kf2 {[%clk 0:02:15.5]}
22... Kg7 {[%clk 0:02:23.8]} 23. Rh1 {[%clk 0:02:15.3]} 23... Ng6 {[%clk
0:02:24.4]} 24. Bf1 {[%clk 0:02:12.7]} 24... a6 {[%clk 0:02:23.8]} 25. Be2
{[%clk 0:02:10]} 25... h6 {[%clk 0:02:19.6]} 26. b4 {[%clk 0:02:07.2]} 26... Ne7
{[%clk 0:02:09.3]} 27. a3 {[%clk 0:02:04.4]} 27... Rh8 {[%clk 0:02:08.7]} 28.
Na4 {[%clk 0:02:01.6]} 28... b6 {[%clk 0:02:06.4]} 29. c5 {[%clk 0:01:59]} 29...
b5 {[%clk 0:02:05.3]} 30. c6 {[%clk 0:01:56.6]} 30... Nf6 {[%clk 0:02:04.1]} 31.
Nc3 {[%clk 0:01:55.1]} 31... Rhb8 {[%clk 0:01:57.8]} 32. a4 {[%clk 0:01:51.4]}
32... bxa4 {[%clk 0:01:57.3]} 33. Rxa4 {[%clk 0:01:52.3]} 33... Nc8 {[%clk
0:01:45.1]} 34. Bxa6 {[%clk 0:01:41.1]} 34... Nb6 {[%clk 0:01:43.2]} 35. Ra2
{[%clk 0:01:33.4]} 35... Kg6 {[%clk 0:01:39.3]} 36. Rha1 {[%clk 0:01:30.5]}
36... h5 {[%clk 0:01:33.6]} 37. gxh5+ {[%clk 0:01:31.4]} 37... Nxh5 {[%clk
0:01:34.1]} 38. Nb5 {[%clk 0:01:24.2]} 38... Ng3 {[%clk 0:01:33.9]} 39. Nxc7
{[%clk 0:01:23.3]} 39... Ra7 {[%clk 0:01:34.5]} 40. Nb5 {[%clk 0:01:18.8]} 40...
Rh7 {[%clk 0:01:34.2]} 41. Rg1 {[%clk 0:01:17.6]} 41... Rh2+ {[%clk 0:01:31.6]}
42. Rg2 {[%clk 0:01:17.8]} 42... Rh1 {[%clk 0:01:32.3]} 43. Nxd6 {[%clk
0:01:11.7]} 43... Kf6 {[%clk 0:01:30.2]} 44. c7 {[%clk 0:01:10.3]} 44... Ra8
{[%clk 0:01:30.1]} 45. c8=Q {[%clk 0:00:52.1]} 45... Nxc8 {[%clk 0:01:29.3]} 46.
Nxc8 {[%clk 0:00:53]} 46... Rxc8 {[%clk 0:01:28]} 47. d6 {[%clk 0:00:42.8]}
47... Rcc1 {[%clk 0:01:24]} 48. Rxg3 {[%clk 0:00:32.1]} 48... fxg3+ {[%clk
0:01:24.9]} 49. Kxg3 {[%clk 0:00:32.9]} 49... Ke6 {[%clk 0:01:24.2]} 50. Rd2
{[%clk 0:00:24]} 50... Rcg1+ {[%clk 0:01:20.8]} 51. Kf2 {[%clk 0:00:23.9]} 51...
Rh2+ {[%clk 0:01:20.2]} 52. Ke3 {[%clk 0:00:20.2]} 52... Rxd2 {[%clk 0:01:21.1]}
53. Kxd2 {[%clk 0:00:21.1]} 53... Kxd6 {[%clk 0:01:20.7]} 54. Bc4 {[%clk
0:00:18.5]} 54... Rb1 {[%clk 0:01:19.2]} 55. Ke3 {[%clk 0:00:12.9]} 55... Rxb4
{[%clk 0:01:18.3]} 56. Bd5 {[%clk 0:00:13.5]} 56... Ra4 {[%clk 0:01:17]} 57. Kf2
{[%clk 0:00:13]} 57... Ra7 {[%clk 0:01:10.5]} 58. Kg3 {[%clk 0:00:13.9]} 58...
Rg7+ {[%clk 0:01:10]} 59. Kf2 {[%clk 0:00:14.3]} 59... Rg6 {[%clk 0:01:08.8]}
60. Ke3 {[%clk 0:00:12.3]} 60... Rf6 {[%clk 0:01:09.3]} 61. Bc4 {[%clk
0:00:10.9]} 61... Ke7 {[%clk 0:01:09.2]} 62. Bg8 {[%clk 0:00:10.9]} 62... Rf4
{[%clk 0:01:09.2]} 63. Bh7 {[%clk 0:00:10.9]} 63... Kf6 {[%clk 0:01:10.1]} 64.
Bf5 {[%clk 0:00:11.5]} 64... Kg5 {[%clk 0:01:10.4]} 65. Kf2 {[%clk 0:00:11.2]}
65... Rh4 {[%clk 0:01:09.6]} 66. Kg3 {[%clk 0:00:12.1]} 66... Rh1 {[%clk
0:01:09.4]} 67. Kg2 {[%clk 0:00:12]} 67... Ra1 {[%clk 0:01:09.3]} 68. Kf2 {[%clk
0:00:11.8]} 68... Kf4 {[%clk 0:01:08.9]} 69. Bg4 {[%clk 0:00:11.7]} 69... Ra2+
{[%clk 0:01:09]} 70. Ke1 {[%clk 0:00:12.2]} 70... Ke3 {[%clk 0:01:09.4]} 71. Kf1
{[%clk 0:00:12]} 71... Rb2 {[%clk 0:01:06.8]} 72. Kg1 {[%clk 0:00:11.9]} 72...
Kf4 {[%clk 0:01:06.2]} 73. Kf1 {[%clk 0:00:11.7]} 73... Kg3 {[%clk 0:01:06.8]}
74. Ke1 {[%clk 0:00:11.9]} 74... Kg2 {[%clk 0:01:07.1]} 75. Kd1 {[%clk
0:00:10.9]} 75... Kf2 {[%clk 0:01:06.9]} 76. Bh5 {[%clk 0:00:11.3]} 76... Ke3
{[%clk 0:01:06.2]} 77. Bg4 {[%clk 0:00:11.6]} 77... Re2 {[%clk 0:01:03.2]} 78.
Bh5 {[%clk 0:00:09.4]} 78... Kd3 {[%clk 0:01:03]} 79. Bg4 {[%clk 0:00:08.1]}
79... Ke3 {[%clk 0:01:01.2]} 80. Bh5 {[%clk 0:00:07.8]} 80... Rh2 {[%clk
0:01:00.8]} 81. Bg4 {[%clk 0:00:08.3]} 81... Ra2 {[%clk 0:00:59.2]} 82. Kc1
{[%clk 0:00:08]} 82... Rd2 {[%clk 0:00:58.9]} 83. Bh5 {[%clk 0:00:08.3]} 83...
Kd3 {[%clk 0:00:59.2]} 84. Bg4 {[%clk 0:00:08]} 84... Kc3 {[%clk 0:00:59.6]} 85.
Bh5 {[%clk 0:00:06.7]} 85... Rh2 {[%clk 0:00:59.1]} 86. Bg4 {[%clk 0:00:06.3]}
86... Rh1# {[%clk 0:00:59.3]} 0-1

[Event "*** Titled Tuesday Blitz"]
[Site "Chess.com"]
[Date "2021.02.02"]
[Round "11"]
[White "Noam_Vitenberg"]
[Black "Nikolakis2014"]
[Result "1-0"]
[WhiteElo "2523"]
[BlackElo "2628"]
[TimeControl "180+1"]
[EndTime "12:08:04 PST"]
[Termination "Noam_Vitenberg won by resignation"]

1. Nf3 {[%clk 0:02:44.7]} 1... Nf6 {[%clk 0:02:58.9]} 2. c4 {[%clk 0:02:42.8]}
2... e6 {[%clk 0:02:59]} 3. b3 {[%clk 0:02:40.5]} 3... d5 {[%clk 0:02:57.2]} 4.
Bb2 {[%clk 0:02:39.6]} 4... Be7 {[%clk 0:02:57.5]} 5. g3 {[%clk 0:02:38.3]} 5...
O-O {[%clk 0:02:57.3]} 6. Bg2 {[%clk 0:02:38.9]} 6... b6 {[%clk 0:02:57.7]} 7.
O-O {[%clk 0:02:38.7]} 7... Bb7 {[%clk 0:02:58]} 8. d3 {[%clk 0:02:39.3]} 8...
Nbd7 {[%clk 0:02:58.2]} 9. Nbd2 {[%clk 0:02:39.6]} 9... c5 {[%clk 0:02:58.5]}
10. Rc1 {[%clk 0:02:39.9]} 10... d4 {[%clk 0:02:56.1]} 11. e3 {[%clk 0:02:37.1]}
11... e5 {[%clk 0:02:56.3]} 12. exd4 {[%clk 0:02:34.3]} 12... exd4 {[%clk
0:02:56.3]} 13. b4 {[%clk 0:02:32.2]} 13... Re8 {[%clk 0:02:55.4]} 14. bxc5
{[%clk 0:02:31.4]} 14... bxc5 {[%clk 0:02:51.4]} 15. Rb1 {[%clk 0:02:27.6]}
15... Rb8 {[%clk 0:02:49.8]} 16. Re1 {[%clk 0:02:27.9]} 16... Bd6 {[%clk
0:02:49.8]} 17. Qa4 {[%clk 0:02:27.1]} 17... Rxe1+ {[%clk 0:02:40.1]} 18. Nxe1
{[%clk 0:02:24.2]} 18... Bxg2 {[%clk 0:02:37.3]} 19. Nxg2 {[%clk 0:02:24.7]}
19... Ne5 {[%clk 0:02:33.4]} 20. Qc2 {[%clk 0:02:18.5]} 20... Qc7 {[%clk
0:02:31.1]} 21. Nf4 {[%clk 0:01:59.3]} 21... Nc6 {[%clk 0:02:20.5]} 22. Nd5
{[%clk 0:01:45.6]} 22... Nxd5 {[%clk 0:02:16.6]} 23. cxd5 {[%clk 0:01:46.5]}
23... Ne7 {[%clk 0:02:14.6]} 24. Qc4 {[%clk 0:01:29.4]} 24... Rb4 {[%clk
0:02:13.1]} 25. Qa6 {[%clk 0:01:21.5]} 25... Nxd5 {[%clk 0:02:12.4]} 26. Nc4
{[%clk 0:01:19.5]} 26... Nb6 {[%clk 0:02:09.3]} 27. a3 {[%clk 0:00:57.8]} 27...
Rxc4 {[%clk 0:00:47.8]} 28. dxc4 {[%clk 0:00:55.8]} 28... h5 {[%clk 0:00:48.5]}
29. Re1 {[%clk 0:00:50.1]} 29... h4 {[%clk 0:00:47.9]} 30. Kg2 {[%clk
0:00:47.2]} 30... Qc6+ {[%clk 0:00:47.2]} 31. f3 {[%clk 0:00:45.5]} 31... hxg3
{[%clk 0:00:46.1]} 32. hxg3 {[%clk 0:00:46.4]} 32... Bc7 {[%clk 0:00:43.3]} 33.
Qb5 {[%clk 0:00:36.6]} 33... Qxb5 {[%clk 0:00:35.2]} 34. cxb5 {[%clk 0:00:37.5]}
34... Nc4 {[%clk 0:00:35.6]} 35. Bc1 {[%clk 0:00:37.6]} 35... Kf8 {[%clk
0:00:31.8]} 36. Kf2 {[%clk 0:00:31]} 36... Ne5 {[%clk 0:00:31.3]} 37. Ke2 {[%clk
0:00:26.7]} 37... c4 {[%clk 0:00:31.1]} 38. Bf4 {[%clk 0:00:21.6]} 38... f6
{[%clk 0:00:27.2]} 39. Bxe5 {[%clk 0:00:20]} 39... fxe5 {[%clk 0:00:26.9]} 40.
Rc1 {[%clk 0:00:18.1]} 40... c3 {[%clk 0:00:26.9]} 41. Kd3 {[%clk 0:00:17.8]}
41... Ke7 {[%clk 0:00:27]} 42. Rh1 {[%clk 0:00:15.1]} 42... Kf6 {[%clk
0:00:18.7]} 43. Rh8 {[%clk 0:00:15.1]} 43... Bb6 {[%clk 0:00:17.9]} 44. Rc8
{[%clk 0:00:14.1]} 44... g5 {[%clk 0:00:17.7]} 45. g4 {[%clk 0:00:13]} 45... Ke6
{[%clk 0:00:17.6]} 46. a4 {[%clk 0:00:08.2]} 46... Kd5 {[%clk 0:00:17.7]} 47.
Rg8 {[%clk 0:00:06.9]} 47... Kc5 {[%clk 0:00:17.9]} 48. Rxg5 {[%clk 0:00:06.9]}
48... Kb4 {[%clk 0:00:18.1]} 49. Kc2 {[%clk 0:00:04.8]} 49... Kc4 {[%clk
0:00:18]} 50. Rxe5 {[%clk 0:00:03]} 50... d3+ {[%clk 0:00:18.2]} 51. Kc1 {[%clk
0:00:03]} 51... Kb3 {[%clk 0:00:18.1]} 52. Re4 {[%clk 0:00:02.8]} 52... d2+
{[%clk 0:00:16.7]} 53. Kd1 {[%clk 0:00:02.6]} 53... Bc5 {[%clk 0:00:16.9]} 54.
g5 {[%clk 0:00:02.4]} 54... Kb2 {[%clk 0:00:16]} 55. Rc4 {[%clk 0:00:02.2]}
55... Bd4 {[%clk 0:00:15.5]} 56. g6 {[%clk 0:00:02]} 56... Bf6 {[%clk
0:00:15.5]} 57. Rc6 {[%clk 0:00:02.6]} 57... Bd4 {[%clk 0:00:15.2]} 58. f4
{[%clk 0:00:03.1]} 58... Bf6 {[%clk 0:00:15.1]} 59. f5 {[%clk 0:00:03.6]} 59...
Bd4 {[%clk 0:00:15.1]} 60. a5 {[%clk 0:00:04.1]} 60... a6 {[%clk 0:00:14.9]} 61.
bxa6 {[%clk 0:00:03.6]} 61... Be5 {[%clk 0:00:14.7]} 62. a7 {[%clk 0:00:03.9]}
62... Bd4 {[%clk 0:00:15.4]} 63. a8=Q {[%clk 0:00:03.6]} 63... Be3 {[%clk
0:00:15.9]} 64. Qb7+ {[%clk 0:00:04.5]} 64... Ka3 {[%clk 0:00:16.3]} 65. Rxc3+
{[%clk 0:00:04.4]} 65... Ka4 {[%clk 0:00:16]} 66. Qb3+ {[%clk 0:00:04.9]} 66...
Kxa5 {[%clk 0:00:16.3]} 67. Rxe3 {[%clk 0:00:05.1]} 67... Ka6 {[%clk 0:00:16.5]}
68. Re8 {[%clk 0:00:03.9]} 1-0

[Event "*** Titled Tuesday Blitz"]
[Site "Chess.com"]
[Date "2021.02.02"]
[Round "11"]
[White "L1m96"]
[Black "Walter_White_Poland"]
[Result "1-0"]
[WhiteElo "2567"]
[BlackElo "2344"]
[TimeControl "180+1"]
[EndTime "12:08:07 PST"]
[Termination "L1m96 won by resignation"]

1. e4 {[%clk 0:03:00.9]} 1... e5 {[%clk 0:02:59.8]} 2. Nf3 {[%clk 0:03:01.1]}
2... Nc6 {[%clk 0:03:00]} 3. Bb5 {[%clk 0:03:01.5]} 3... a6 {[%clk 0:03:00.2]}
4. Ba4 {[%clk 0:03:01.8]} 4... Nf6 {[%clk 0:03:00.4]} 5. O-O {[%clk 0:03:01.4]}
5... b5 {[%clk 0:02:59.1]} 6. Bb3 {[%clk 0:03:01.2]} 6... Be7 {[%clk 0:02:59.1]}
7. Re1 {[%clk 0:03:00.8]} 7... d6 {[%clk 0:02:58]} 8. c3 {[%clk 0:02:57.9]} 8...
O-O {[%clk 0:02:57.8]} 9. h3 {[%clk 0:02:58.2]} 9... Na5 {[%clk 0:02:51.5]} 10.
Bc2 {[%clk 0:02:57.9]} 10... c5 {[%clk 0:02:51.6]} 11. d3 {[%clk 0:02:55.2]}
11... Ne8 {[%clk 0:02:28.2]} 12. Nbd2 {[%clk 0:02:45.2]} 12... g6 {[%clk
0:02:27.5]} 13. Nf1 {[%clk 0:02:40.3]} 13... Ng7 {[%clk 0:02:27.3]} 14. d4
{[%clk 0:02:39.8]} 14... Qc7 {[%clk 0:02:20]} 15. Bh6 {[%clk 0:02:34.7]} 15...
Nc6 {[%clk 0:02:04.6]} 16. Rc1 {[%clk 0:02:33.6]} 16... f6 {[%clk 0:01:55.8]}
17. Ne3 {[%clk 0:02:30.7]} 17... Bb7 {[%clk 0:01:25.1]} 18. a4 {[%clk 0:02:16]}
18... c4 {[%clk 0:01:11.8]} 19. Nd5 {[%clk 0:02:08.1]} 19... Qd8 {[%clk
0:01:10.2]} 20. Be3 {[%clk 0:01:59.1]} 20... f5 {[%clk 0:00:50.3]} 21. axb5
{[%clk 0:01:29.6]} 21... axb5 {[%clk 0:00:48]} 22. dxe5 {[%clk 0:01:19.9]} 22...
Nxe5 {[%clk 0:00:38.1]} 23. Nxe5 {[%clk 0:01:04.2]} 23... dxe5 {[%clk
0:00:38.4]} 24. Bb6 {[%clk 0:01:01]} 24... Qd6 {[%clk 0:00:33.4]} 25. Nxe7+
{[%clk 0:00:58.1]} 25... Qxe7 {[%clk 0:00:33.1]} 26. exf5 {[%clk 0:00:55.8]}
26... gxf5 {[%clk 0:00:22.5]} 27. Qd2 {[%clk 0:00:47.5]} 27... Rf6 {[%clk
0:00:11.5]} 28. Bd4 {[%clk 0:00:35.6]} 28... Rg6 {[%clk 0:00:10.6]} 29. f3
{[%clk 0:00:34.8]} 29... Qd7 {[%clk 0:00:08.7]} 30. Rxe5 {[%clk 0:00:28.9]}
30... Bxf3 {[%clk 0:00:08.9]} 31. Rce1 {[%clk 0:00:21.2]} 31... Rxg2+ {[%clk
0:00:07.4]} 32. Qxg2 {[%clk 0:00:21.4]} 32... Bxg2 {[%clk 0:00:07.8]} 33. Re7
{[%clk 0:00:22]} 33... Qd5 {[%clk 0:00:03.1]} 34. Rxg7+ {[%clk 0:00:21.6]} 34...
Kf8 {[%clk 0:00:03.6]} 35. Rxg2 {[%clk 0:00:21.6]} 35... Re8 {[%clk 0:00:03.6]}
36. Rf1 {[%clk 0:00:20.3]} 36... Re4 {[%clk 0:00:02.8]} 37. Rxf5+ {[%clk
0:00:11.9]} 37... Qxf5 {[%clk 0:00:02.5]} 38. Rf2 {[%clk 0:00:11.5]} 38... Re1+
{[%clk 0:00:01.8]} 39. Kg2 {[%clk 0:00:07.8]} 39... Qxf2+ {[%clk 0:00:02.7]} 40.
Kxf2 {[%clk 0:00:06.7]} 40... Rc1 {[%clk 0:00:03.2]} 41. Bxh7 {[%clk 0:00:04.6]}
41... Rd1 {[%clk 0:00:03.7]} 42. Ke2 {[%clk 0:00:04.5]} 42... Rh1 {[%clk
0:00:03.7]} 43. Bf5 {[%clk 0:00:04.2]} 43... Rh2+ {[%clk 0:00:03.8]} 44. Bf2
{[%clk 0:00:04.8]} 44... Rg2 {[%clk 0:00:03.4]} 45. Bg4 {[%clk 0:00:04.3]} 45...
Rh2 {[%clk 0:00:02.9]} 46. Bd7 {[%clk 0:00:03.6]} 46... Rh1 {[%clk 0:00:03.2]}
47. Bxb5 {[%clk 0:00:03.6]} 47... Rb1 {[%clk 0:00:03]} 48. Bxc4 {[%clk 0:00:04]}
48... Rxb2+ {[%clk 0:00:03.9]} 49. Kf3 {[%clk 0:00:03.6]} 49... Rc2 {[%clk
0:00:04.4]} 50. Bd4 {[%clk 0:00:04.1]} 50... Rh2 {[%clk 0:00:04.4]} 51. Kg3
{[%clk 0:00:03.6]} 51... Rc2 {[%clk 0:00:03.6]} 52. Bd5 {[%clk 0:00:03.5]} 52...
Ke7 {[%clk 0:00:03.5]} 53. Bf3 {[%clk 0:00:04.4]} 53... Kd6 {[%clk 0:00:03.4]}
54. h4 {[%clk 0:00:04.3]} 54... Rc1 {[%clk 0:00:02.6]} 55. h5 {[%clk 0:00:04.2]}
55... Ra1 {[%clk 0:00:03.2]} 56. Kf4 {[%clk 0:00:04.5]} 56... Ra7 {[%clk
0:00:03.5]} 57. Bxa7 {[%clk 0:00:03.3]} 57... Ke6 {[%clk 0:00:02.4]} 58. Kg5
{[%clk 0:00:03.1]} 58... Kf7 {[%clk 0:00:02.5]} 59. Be3 {[%clk 0:00:04]} 59...
Ke7 {[%clk 0:00:03.4]} 60. Be2 {[%clk 0:00:04.9]} 60... Ke6 {[%clk 0:00:04.2]}
61. Bf2 {[%clk 0:00:05.8]} 61... Ke5 {[%clk 0:00:05.1]} 62. c4 {[%clk
0:00:06.7]} 62... Ke4 {[%clk 0:00:06]} 63. Kg6 {[%clk 0:00:07.6]} 63... Ke5
{[%clk 0:00:06.1]} 64. Bd1 {[%clk 0:00:08.2]} 64... Kd6 {[%clk 0:00:06.9]} 65.
Bh4 {[%clk 0:00:09.1]} 65... Kc6 {[%clk 0:00:07.8]} 66. Bf6 {[%clk 0:00:10]} 1-0

[Event "*** Titled Tuesday Blitz"]
[Site "Chess.com"]
[Date "2021.02.02"]
[Round "11"]
[White "kingofthenil"]
[Black "ehrenfeld"]
[Result "0-1"]
[WhiteElo "2647"]
[BlackElo "2511"]
[TimeControl "180+1"]
[EndTime "12:08:07 PST"]
[Termination "ehrenfeld won on time"]

1. g4 {[%clk 0:03:00.9]} 1... d5 {[%clk 0:02:55.2]} 2. Bg2 {[%clk 0:02:56.4]}
2... c6 {[%clk 0:02:54.3]} 3. g5 {[%clk 0:02:56]} 3... e5 {[%clk 0:02:53.4]} 4.
d4 {[%clk 0:02:55]} 4... e4 {[%clk 0:02:47.9]} 5. c4 {[%clk 0:02:46.5]} 5... Be6
{[%clk 0:02:37.2]} 6. Nc3 {[%clk 0:02:40.9]} 6... Bb4 {[%clk 0:02:32.1]} 7. Qb3
{[%clk 0:02:37.9]} 7... Bxc3+ {[%clk 0:02:31.7]} 8. bxc3 {[%clk 0:02:33.6]} 8...
Qd7 {[%clk 0:02:29.1]} 9. h4 {[%clk 0:02:16.6]} 9... Ne7 {[%clk 0:02:27.2]} 10.
Nh3 {[%clk 0:02:11.6]} 10... dxc4 {[%clk 0:02:17.7]} 11. Qc2 {[%clk 0:02:06.1]}
11... Bf5 {[%clk 0:02:15.2]} 12. Be3 {[%clk 0:01:39.7]} 12... Nd5 {[%clk
0:02:12.6]} 13. Rb1 {[%clk 0:01:28.3]} 13... O-O {[%clk 0:02:06.6]} 14. h5
{[%clk 0:01:10.5]} 14... Na6 {[%clk 0:01:58.3]} 15. Qd2 {[%clk 0:00:48.6]} 15...
b5 {[%clk 0:01:55.6]} 16. h6 {[%clk 0:00:41.3]} 16... g6 {[%clk 0:01:54.6]} 17.
Nf4 {[%clk 0:00:41.2]} 17... Nac7 {[%clk 0:01:51.2]} 18. O-O {[%clk 0:00:35]}
18... f6 {[%clk 0:01:48.1]} 19. gxf6 {[%clk 0:00:28]} 19... Rxf6 {[%clk
0:01:47.2]} 20. Nxd5 {[%clk 0:00:26.5]} 20... Nxd5 {[%clk 0:01:46.4]} 21. Bg5
{[%clk 0:00:27.4]} 21... Rf7 {[%clk 0:01:42.5]} 22. Rbe1 {[%clk 0:00:24.7]}
22... Bh3 {[%clk 0:01:36.2]} 23. f3 {[%clk 0:00:24.1]} 23... Bxg2 {[%clk
0:01:34.8]} 24. Kxg2 {[%clk 0:00:24.7]} 24... Re8 {[%clk 0:01:31.4]} 25. Kh2
{[%clk 0:00:18.1]} 25... e3 {[%clk 0:01:05.7]} 26. Qc2 {[%clk 0:00:18]} 26...
Qc7+ {[%clk 0:00:59.6]} 27. Kg2 {[%clk 0:00:16.8]} 27... Nf4+ {[%clk 0:00:59.4]}
28. Bxf4 {[%clk 0:00:13.2]} 28... Qxf4 {[%clk 0:00:58.5]} 29. Rh1 {[%clk
0:00:12.5]} 29... Rf5 {[%clk 0:00:57.5]} 30. Reg1 {[%clk 0:00:11.4]} 30... Rg5+
{[%clk 0:00:50.4]} 31. Kf1 {[%clk 0:00:11.6]} 31... Rxg1+ {[%clk 0:00:49.3]} 32.
Rxg1 {[%clk 0:00:12.5]} 32... Qxh6 {[%clk 0:00:37.4]} 33. a4 {[%clk 0:00:12.8]}
33... Qh4 {[%clk 0:00:33.5]} 34. Rg2 {[%clk 0:00:11.8]} 34... bxa4 {[%clk
0:00:24.3]} 35. Qxa4 {[%clk 0:00:12]} 35... Rb8 {[%clk 0:00:21.8]} 36. Qxc4+
{[%clk 0:00:12.3]} 36... Kh8 {[%clk 0:00:21.3]} 37. Qa2 {[%clk 0:00:10.3]} 37...
Qh1+ {[%clk 0:00:18.2]} 38. Rg1 {[%clk 0:00:10.3]} 38... Qh3+ {[%clk 0:00:18.2]}
39. Rg2 {[%clk 0:00:07.8]} 39... Qf5 {[%clk 0:00:18.2]} 40. Kg1 {[%clk
0:00:02.1]} 40... Rb1+ {[%clk 0:00:17.2]} 41. Kh2 {[%clk 0:00:02.7]} 41... Qh5+
{[%clk 0:00:14.3]} 42. Kg3 {[%clk 0:00:03.1]} 42... Qg5+ {[%clk 0:00:14.2]} 43.
Kh3 {[%clk 0:00:02.1]} 43... Rh1+ {[%clk 0:00:13]} 44. Rh2 {[%clk 0:00:02]}
44... Qh5+ {[%clk 0:00:13.2]} 45. Kg3 {[%clk 0:00:01.2]} 45... Qxh2+ {[%clk
0:00:13.2]} 46. Kg4 {[%clk 0:00:02.1]} 46... Qh5+ {[%clk 0:00:10.8]} 47. Kf4
{[%clk 0:00:02.1]} 47... Qf5+ {[%clk 0:00:10.4]} 48. Kxe3 {[%clk 0:00:02.4]}
48... Qd7 {[%clk 0:00:09.5]} 49. Qa3 {[%clk 0:00:01.9]} 49... Kg7 {[%clk
0:00:09]} 50. Qc5 {[%clk 0:00:02]} 50... Rh5 {[%clk 0:00:08.3]} 51. Qb4 {[%clk
0:00:02]} 51... Rf5 {[%clk 0:00:08.4]} 52. Kf2 {[%clk 0:00:02.2]} 52... Rf7
{[%clk 0:00:08.5]} 53. Qb2 {[%clk 0:00:02.7]} 53... h5 {[%clk 0:00:08.6]} 54. c4
{[%clk 0:00:03.2]} 54... Kh7 {[%clk 0:00:07.7]} 55. e4 {[%clk 0:00:03.2]} 55...
Qg4 {[%clk 0:00:06.5]} 56. Qc3 {[%clk 0:00:03.7]} 56... Qxe4 {[%clk 0:00:06]}
57. d5 {[%clk 0:00:02.8]} 57... cxd5 {[%clk 0:00:05.6]} 58. cxd5 {[%clk
0:00:03.1]} 58... Qxd5 {[%clk 0:00:05.2]} 59. Kg3 {[%clk 0:00:03.6]} 59... Rxf3+
{[%clk 0:00:03.7]} 60. Qxf3 {[%clk 0:00:00.6]} 60... Qxf3+ {[%clk 0:00:03.5]}
0-1